bitfinex/quotes_SOLUSD_20250118
["timestamp","ask_amount","ask_price","bid_price","bid_amount"]
[1737193346925,20.51668224,236.61,236.56,47.09782668]
[1737193347123,0.063,236.67,236.56,184.39782668]
[1737193347124,20.51668224,236.63,236.56,184.39782668]
[1737193347438,20.51668224,236.65,236.57,20.51668224]
[1737193347625,20.57968224,236.67,236.57,20.51668224]
[1737193348552,20.51668224,236.65,236.56,184.39782668]
[1737193350444,20.51668224,236.63,236.56,184.39782668]
[1737193350647,20.51668224,236.61,236.56,47.09782668]
[1737193351159,20.51668224,236.64,236.56,184.39782668]
[1737193351341,20.51668224,236.6,236.56,47.09782668]
[1737193351548,20.51668224,236.58,236.56,47.09782668]
[1737193352646,10.6262,236.67,236.56,47.09782668]
[1737193352954,20.51668224,236.6,236.56,47.09782668]
[1737193353654,20.51668224,236.6,236.56,47.12782668]
[1737193353862,20.51668224,236.58,236.56,47.12782668]
[1737193354633,4.227,236.57,236.56,47.12782668]
[1737193355237,4.227,236.57,236.56,0.03]
[1737193356455,4.2277,236.53,236.43,0.03]
[1737193356645,20.51668224,236.47,236.43,0.03]
[1737193357231,10.5694,236.53,236.43,0.03]
[1737193357431,20.51668224,236.47,236.43,0.03]
[1737193360767,0.063,236.67,236.49,204.39782668]
[1737193360768,20.51668224,236.6,236.49,204.39782668]
[1737193360962,20.51668224,236.64,236.55,204.91450892]
[1737193361468,0.063,236.67,236.55,204.91450892]
[1737193361469,20.51668224,236.57,236.55,47.09782668]
[1737193361967,20.51668224,236.63,236.55,204.91450892]
[1737193362144,20.51668224,236.65,236.57,20.51668224]
[1737193362345,20.51668224,236.61,236.55,184.39782668]
[1737193362563,20.51668224,236.63,236.55,204.91450892]
[1737193363374,0.063,236.67,236.62,204.39782668]
[1737193363549,7.0457,236.79,236.62,204.39782668]
[1737193363550,20.51668224,236.74,236.68,20.0]
[1737193363737,20.51668224,236.76,236.68,224.91450892]
[1737193364265,4.2228,236.81,236.68,224.91450892]
[1737193364443,20.51668224,236.76,236.68,224.91450892]
[1737193365036,20.51668224,236.76,236.68,184.39782668]
[1737193365242,20.51668224,236.72,236.68,47.09782668]
[1737193365450,20.51668224,236.7,236.68,47.09782668]
[1737193366656,4.2249,236.69,236.68,47.09782668]
[1737193368469,20.51668224,236.7,236.68,47.09782668]
[1737193368847,20.51668224,236.69,236.56,184.42782668]
[1737193369052,20.51668224,236.58,236.56,47.12782668]
[1737193369675,20.51668224,236.58,236.56,0.03]
[1737193370250,4.227,236.57,236.56,0.03]
[1737193370453,20.0,236.54,236.46,0.03]
[1737193370656,20.51668224,236.47,236.46,0.03]
[1737193372983,20.51668224,236.53,236.46,47.12782668]
[1737193373144,20.51668224,236.53,236.46,67.64450892]
[1737193373662,20.51668224,236.57,236.48,20.51668224]
[1737193373864,6.35508468,236.59,236.53,204.91450892]
[1737193374676,20.51668224,236.63,236.55,20.51668224]
[1737193375062,6.35508468,236.71,236.64,47.09782668]
[1737193375258,2.13018468,236.71,236.7,224.91450892]
[1737193375762,20.51668224,236.72,236.7,47.09782668]
[1737193376370,24.74118224,236.72,236.65,137.3]
[1737193376560,20.51668224,236.67,236.6,20.51668224]
[1737193376761,20.51668224,236.67,236.58,204.91450892]
[1737193376962,20.51668224,236.65,236.58,67.61450892]
[1737193377481,20.51668224,236.63,236.58,47.09782668]
[1737193377869,20.51668224,236.63,236.59,0.03]
[1737193378073,20.51668224,236.61,236.59,0.03]
[1737193379366,4.2258,236.64,236.59,0.03]
[1737193379676,33.43858005,236.6,236.59,0.03]
[1737193379985,20.0,236.68,236.59,0.03]
[1737193380188,33.43858005,236.6,236.59,0.03]
[1737193381088,33.43858005,236.62,236.59,0.03]
[1737193381288,33.43858005,236.6,236.59,0.03]
[1737193383188,33.43858005,236.6,236.58,22.74023211]
[1737193384284,4.2247,236.7,236.58,22.74023211]
[1737193384485,33.43858005,236.65,236.58,22.74023211]
[1737193384786,33.43858005,236.71,236.63,33.43858005]
[1737193384984,0.063,236.76,236.68,20.0]
[1737193384985,33.43858005,236.73,236.68,20.0]
[1737193385167,0.063,236.76,236.7,33.43858005]
[1737193385367,33.43858005,236.75,236.68,160.04023211]
[1737193385582,33.43858005,236.73,236.68,160.04023211]
[1737193385972,33.43858005,236.71,236.68,22.74023211]
[1737193387085,0.063,236.76,236.68,56.17881216]
[1737193387290,33.43858005,236.72,236.68,22.74023211]
[1737193387869,33.43858005,236.7,236.68,22.74023211]
[1737193389693,33.43858005,236.7,236.58,33.43858005]
[1737193389879,33.43858005,236.71,236.62,33.43858005]
[1737193390090,33.43858005,236.73,236.64,33.43858005]
[1737193390295,33.43858005,236.71,236.62,33.43858005]
[1737193391300,33.43858005,236.69,236.6,193.47881216]
[1737193392102,33.43858005,236.67,236.6,22.74023211]
[1737193392979,33.43858005,236.65,236.6,22.74023211]
[1737193393502,33.43858005,236.63,236.6,22.74023211]
[1737193394199,33.43858005,236.65,236.6,22.74023211]
[1737193394585,33.43858005,236.63,236.6,22.74023211]
[1737193394781,33.43858005,236.65,236.6,160.04023211]
[1737193395000,33.43858005,236.67,236.6,160.04023211]
[1737193395195,33.43858005,236.65,236.6,160.04023211]
[1737193395896,33.43858005,236.65,236.58,0.03]
[1737193395897,33.50158005,236.73,236.67,180.04023211]
[1737193396096,0.063,236.73,236.69,193.47881216]
[1737193396289,0.063,236.73,236.72,20.0]
[1737193396493,0.063,236.73,236.72,180.6737095]
[1737193396695,0.063,236.73,236.72,180.04023211]
[1737193399504,0.063,236.82,236.72,180.04023211]
[1737193399709,0.063,236.82,236.79,193.47881216]
[1737193399910,0.063,236.82,236.8,0.63320134]
[1737193400795,33.50158005,236.82,236.79,22.74023211]
[1737193400987,33.43858005,236.8,236.79,22.74023211]
[1737193401389,20.55208373,236.8,236.65,160.04023211]
[1737193401685,20.55208373,236.68,236.65,22.74023211]
[1737193402405,20.55208373,236.66,236.65,22.74023211]
[1737193403710,20.55208373,236.68,236.65,22.74023211]
[1737193404815,20.55208373,236.72,236.65,160.04023211]
[1737193404990,20.55208373,236.74,236.69,20.0]
[1737193405396,20.55208373,236.76,236.69,20.0]
[1737193405612,20.55208373,236.76,236.69,20.63351596]
[1737193406218,20.55208373,236.78,236.69,41.18559969]
[1737193406809,20.55208373,236.76,236.69,20.0]
[1737193407015,20.55208373,236.74,236.66,22.74023211]
[1737193407199,20.55208373,236.72,236.66,22.74023211]
[1737193407403,20.55208373,236.7,236.66,22.74023211]
[1737193410029,20.55208373,236.74,236.66,22.74023211]
[1737193410318,20.55208373,236.76,236.67,20.55208373]
[1737193410516,20.55208373,236.72,236.66,22.74023211]
[1737193410895,20.55208373,236.74,236.66,22.74023211]
[1737193412724,0.063,236.8,236.72,20.55208373]
[1737193413024,0.063,236.8,236.76,20.55208373]
[1737193413221,0.063,236.8,236.77,0.63329873]
[1737193413417,0.063,236.8,236.76,22.74023211]
[1737193413613,20.55208373,236.79,236.76,22.74023211]
[1737193413818,0.063,236.8,236.76,22.74023211]
[1737193413819,20.55208373,236.77,236.76,22.74023211]
[1737193414727,24.77558373,236.77,236.71,137.3]
[1737193415026,20.55208373,236.72,236.63,20.55208373]
[1737193416123,20.55208373,236.7,236.61,181.22598323]
[1737193416424,20.55208373,236.76,236.61,22.74023211]
[1737193416425,20.55208373,236.62,236.61,22.74023211]
[1737193417431,20.55208373,236.62,236.61,22.77023211]
[1737193419721,20.55208373,236.66,236.61,22.77023211]
[1737193420227,20.55208373,236.68,236.61,22.77023211]
[1737193420821,20.55208373,236.68,236.61,23.4039496]
[1737193421021,20.55208373,236.77,236.69,20.0]
[1737193421227,20.55208373,236.79,236.71,20.55208373]
[1737193421422,0.063,236.82,236.76,20.0]
[1737193421726,0.063,236.82,236.76,0.63329766]
[1737193422233,20.55208373,236.81,236.76,0.63329766]
[1737193422434,20.55208373,236.79,236.74,22.74023211]
[1737193423028,0.063,236.82,236.74,22.74023211]
[1737193423029,20.55208373,236.77,236.74,22.74023211]
[1737193423419,33.39314854,236.76,236.74,22.74023211]
[1737193425736,33.39314854,236.78,236.74,22.74023211]
[1737193427118,33.45614854,236.8,236.74,23.37368313]
[1737193427317,0.063,236.8,236.77,33.39314854]
[1737193427534,0.063,236.8,236.78,0.63327032]
[1737193428542,0.063,236.8,236.75,34.02642966]
[1737193429235,0.063,236.8,236.75,0.63328112]
[1737193429420,33.39314854,236.79,236.74,160.04023211]
[1737193429620,33.39314854,236.77,236.74,22.74023211]
[1737193430319,0.063,236.8,236.74,22.74023211]
[1737193430538,0.063,236.8,236.79,193.43338065]
[1737193430833,0.063,236.87,236.82,33.39314854]
[1737193432039,0.063,236.87,236.84,33.39314854]
[1737193432342,0.063,236.87,236.84,34.02622719]
[1737193433033,0.063,236.87,236.84,0.63307865]
[1737193433340,0.063,236.87,236.82,53.39314854]
[1737193435953,0.063,236.87,236.82,20.0]
[1737193436122,0.063,236.87,236.83,0.63318125]
[1737193436321,0.063,236.87,236.83,160.67341336]
[1737193436525,0.063,236.87,236.83,160.04023211]
[1737193436738,0.063,236.87,236.86,213.43338065]
[1737193437244,0.063,236.87,236.86,42.74023211]
[1737193437740,0.063,236.87,236.86,56.13338065]
[1737193440642,0.063,236.87,236.86,22.74023211]
[1737193440935,0.063,236.91,236.9,137.237]
[1737193441128,0.063,236.93,236.9,170.63014854]
[1737193441333,0.063,236.93,236.9,137.237]
[1737193441639,33.39314854,236.92,236.9,137.237]
[1737193442723,4.221,236.91,236.9,137.237]
[1737193442923,27.997884,236.91,236.9,137.237]
[1737193443437,48.53254189,236.91,236.9,137.237]
[1737193443624,48.53254189,236.91,236.9,122.57737471]
[1737193443825,24.75565789,236.91,236.9,122.57737471]
[1737193449928,48.53254189,236.91,236.9,122.57737471]
[1737193450255,24.75565789,236.91,236.77,122.57737471]
[1737193450551,20.53465789,236.81,236.77,122.57737471]
[1737193451652,20.53465789,236.79,236.77,122.57737471]
[1737193452748,24.75785789,236.79,236.77,122.57737471]
[1737193453048,20.53465789,236.79,236.77,122.57737471]
[1737193454857,20.53465789,236.81,236.77,122.57737471]
[1737193455149,20.53465789,236.79,236.77,122.57737471]
[1737193455746,20.53465789,236.79,236.77,122.60737471]
[1737193456548,24.75775789,236.79,236.77,122.60737471]
[1737193457344,20.53465789,236.79,236.77,122.60737471]
[1737193457529,20.53465789,236.81,236.77,122.60737471]
[1737193458455,20.53465789,236.79,236.77,122.60737471]
[1737193459454,20.53465789,236.81,236.77,122.60737471]
[1737193461638,20.53465789,236.85,236.77,143.1420326]
[1737193461849,20.53465789,236.83,236.77,122.60737471]
[1737193462050,20.53465789,236.88,236.77,122.60737471]
[1737193462051,20.53465789,236.79,236.77,122.60737471]
[1737193464465,4.2226,236.82,236.77,122.60737471]
[1737193464639,20.53465789,236.79,236.77,122.60737471]
[1737193467568,20.53465789,236.85,236.77,122.60737471]
[1737193467867,20.53465789,236.85,236.78,20.53465789]
[1737193468075,20.53465789,236.9,236.82,20.53465789]
[1737193468366,0.063,237.0,236.87,143.1120326]
[1737193468544,20.53465789,236.91,236.88,0.63296453]
[1737193468745,20.53465789,236.89,236.87,122.57737471]
[1737193470175,20.53465789,236.92,236.87,122.57737471]
[1737193470571,20.53465789,236.9,236.87,122.57737471]
[1737193471671,20.53465789,236.88,236.87,122.57737471]
[1737193474572,20.53465789,236.9,236.87,122.57737471]
[1737193475773,20.53465789,236.88,236.87,122.57737471]
[1737193477561,20.53465789,236.91,236.87,122.57737471]
[1737193477764,0.063,236.93,236.87,143.1120326]
[1737193478064,0.063,236.93,236.89,20.53465789]
[1737193478259,0.063,236.93,236.87,143.1120326]
[1737193479552,0.063,236.93,236.87,143.1420326]
[1737193480578,0.063,237.0,236.91,185.85226471]
[1737193480764,0.063,237.0,236.96,122.57737471]
[1737193480966,20.53465789,236.99,236.96,122.57737471]
[1737193481379,0.063,237.0,236.96,122.57737471]
[1737193484266,20.53465789,236.99,236.96,122.57737471]
[1737193484978,0.063,237.0,236.96,122.57737471]
[1737193485568,0.063,237.0,236.91,42.74023211]
[1737193485569,12.81596351,236.97,236.91,157.3]
[1737193486297,12.81596351,236.97,236.91,137.3]
[1737193486977,0.063,237.0,236.91,137.3]
[1737193487179,12.81596351,236.97,236.91,137.3]
[1737193487478,12.81596351,236.97,236.92,0.63291639]
[1737193487681,12.81596351,236.99,236.95,20.0]
[1737193487887,0.063,237.0,236.95,170.11596351]
[1737193488095,0.063,237.05,237.01,137.237]
[1737193488398,0.063,237.05,237.04,32.81596351]
[1737193488568,0.063,237.05,237.04,33.44847334]
[1737193489094,0.063,237.05,237.04,157.86950983]
[1737193489274,0.063,237.12,237.04,240.137]
[1737193489469,20.47837028,237.1,237.04,240.137]
[1737193490169,20.54137028,237.12,237.04,240.137]
[1737193490374,20.54137028,237.12,237.05,0.6324948]
[1737193490686,0.063,237.12,237.1,20.0]
[1737193490991,0.063,237.12,237.07,20.47837028]
[1737193490992,0.063,237.12,237.08,0.63239713]
[1737193491162,0.063,237.12,237.08,20.63239713]
[1737193491368,0.063,237.12,237.1,20.0]
[1737193491568,0.063,237.12,237.09,20.47837028]
[1737193491768,0.063,237.12,237.1,0.6323663]
[1737193492175,0.063,237.12,237.1,93.3433663]
[1737193492675,0.063,237.16,237.13,20.0]
[1737193492967,0.063,237.16,237.15,20.47837028]
[1737193493180,0.063,237.16,237.14,0.63219887]
[1737193493576,0.063,237.16,237.15,20.47837028]
[1737193494291,0.063,237.21,237.18,137.111]
[1737193494897,20.47837028,237.19,237.18,137.111]
[1737193495271,0.063,237.21,237.18,137.111]
[1737193495962,0.063,237.21,237.19,0.6321585]
[1737193496194,0.063,237.21,237.2,20.0]
[1737193496665,0.063,237.21,237.19,21.11052878]
[1737193497066,0.063,237.21,237.19,104.01052878]
[1737193497592,0.063,237.21,237.19,109.39818789]
[1737193498271,20.47837028,237.32,237.22,20.0]
[1737193498471,20.47837028,237.34,237.28,20.0]
[1737193499200,0.063,237.35,237.28,240.64298052]
[1737193499498,0.063,237.35,237.28,240.011]
[1737193500071,20.47837028,237.34,237.28,240.011]
[1737193500402,20.47837028,237.32,237.28,240.011]
[1737193501098,20.47837028,237.34,237.28,240.011]
[1737193501573,20.47837028,237.31,237.28,220.011]
[1737193501778,20.47837028,237.29,237.28,205.38151693]
[1737193503096,20.47837028,237.33,237.31,102.00314665]
[1737193503781,0.063,237.35,237.31,102.00314665]
[1737193503782,20.54137028,237.35,237.31,102.00314665]
[1737193506490,0.063,237.35,237.34,20.0]
[1737193507565,0.063,237.35,237.34,41.11017779]
[1737193507765,0.063,237.43,237.34,230.81332444]
[1737193507973,10.5857,237.59,237.49,101.94014665]
[1737193507974,0.063,237.59,237.49,101.94014665]
[1737193508207,20.47837028,237.57,237.52,20.0]
[1737193508374,20.47837028,237.55,237.49,101.94014665]
[1737193508576,0.063,237.59,237.49,101.94014665]
[1737193508577,20.54137028,237.53,237.49,101.94014665]
[1737193508778,20.47837028,237.51,237.49,101.94014665]
[1737193509487,20.47837028,237.5,237.49,101.94014665]
[1737193509998,44.25525428,237.5,237.49,101.94014665]
[1737193510201,20.47837028,237.5,237.49,101.94014665]
[1737193510974,64.73362456,237.5,237.49,101.94014665]
[1737193511176,20.47837028,237.5,237.49,101.94014665]
[1737193511389,12.76844961,237.5,237.49,81.46897312]
[1737193511589,16.97894961,237.5,237.49,81.46897312]
[1737193513006,12.76844961,237.52,237.49,81.46897312]
[1737193513211,0.063,237.53,237.49,81.46897312]
[1737193513387,0.063,237.59,237.58,20.0]
[1737193513701,20.40070007,237.72,237.58,177.70070007]
[1737193514000,20.40070007,237.7,237.66,20.0]
[1737193514315,20.40070007,237.72,237.66,157.3]
[1737193514480,20.40070007,237.7,237.66,157.3]
[1737193514682,20.40070007,237.68,237.66,137.3]
[1737193515308,20.40070007,237.7,237.66,137.3]
[1737193515791,7.5384,237.85,237.68,157.3]
[1737193516100,32.14350007,237.85,237.71,157.3]
[1737193516335,32.14350007,237.85,237.75,20.40070007]
[1737193516595,20.40070007,237.83,237.73,20.40070007]
[1737193517195,24.60540007,237.83,237.73,20.40070007]
[1737193517494,20.40070007,237.81,237.71,177.70070007]
[1737193517881,20.40070007,237.81,237.73,20.40070007]
[1737193518088,20.40070007,237.83,237.75,20.40070007]
[1737193518785,20.40070007,237.81,237.71,157.70070007]
[1737193518996,20.40070007,237.77,237.71,137.3]
[1737193519580,20.40070007,237.73,237.71,137.3]
[1737193519996,20.40070007,237.75,237.71,137.3]
[1737193520199,20.40070007,237.81,237.72,157.70070007]
[1737193520404,20.40070007,237.83,237.77,20.0]
[1737193520611,20.40070007,237.87,237.83,20.0]
[1737193520785,20.40070007,237.9,237.83,20.0]
[1737193520988,20.40070007,237.85,237.78,20.40070007]
[1737193521291,11.7411,237.94,209.12,0.3]
[1737193521292,20.40070007,237.79,237.65,20.40070007]
[1737193521500,20.40070007,237.77,237.65,20.40070007]
[1737193521894,23.776884,237.76,237.65,20.40070007]
[1737193522090,20.40070007,237.77,237.63,20.40070007]
[1737193522293,20.40070007,237.77,237.65,20.40070007]
[1737193522510,20.40070007,237.77,237.67,20.40070007]
[1737193522917,20.40070007,237.77,237.65,20.40070007]
[1737193523084,27.982784,237.76,237.63,25.20070007]
[1737193523710,27.982784,237.76,237.61,20.40070007]
[1737193523921,27.982784,237.76,237.6,4.8]
[1737193524424,27.982784,237.76,237.63,137.3]
[1737193524594,20.40070007,237.67,237.63,137.3]
[1737193526412,20.40070007,237.65,237.63,137.3]
[1737193528194,69.18465936,237.49,237.45,58.11793689]
[1737193528395,69.18465936,237.49,237.45,52.432]
[1737193528396,20.40070007,237.47,237.45,52.432]
[1737193528587,20.40070007,237.47,237.39,53.06351182]
[1737193528793,20.40070007,237.48,237.39,52.432]
[1737193529016,20.40070007,237.48,237.39,12.03488409]
[1737193529397,4.211,237.47,237.39,12.03488409]
[1737193529601,20.40070007,237.4,237.39,12.03488409]
[1737193530402,20.40070007,237.4,237.33,12.03488409]
[1737193530598,24.61160007,237.48,237.33,12.03488409]
[1737193530599,4.2109,237.48,237.33,12.03488409]
[1737193530800,20.40070007,237.36,237.33,12.03488409]
[1737193531199,20.40070007,237.34,237.33,12.03488409]
[1737193531805,20.58337093,237.34,237.29,12.03488409]
[1737193532100,20.58337093,237.3,237.22,0.6318821]
[1737193532300,20.58337093,237.26,237.22,137.9318821]
[1737193532630,20.58337093,237.26,237.22,137.3]
[1737193532827,16.845065,237.26,237.25,157.3]
[1737193533026,37.42843593,237.26,237.25,137.3]
[1737193534928,16.845065,237.26,237.25,137.3]
[1737193535225,4.2125,237.39,237.27,157.3]
[1737193535401,20.58337093,237.28,237.27,137.3]
[1737193536913,20.58337093,237.28,237.22,20.0]
[1737193537113,20.58337093,237.23,237.22,157.3]
[1737193537621,20.58337093,237.23,237.18,137.3]
[1737193537921,20.58337093,237.19,237.18,137.3]
[1737193538428,20.58337093,237.19,237.15,137.363]
[1737193538600,20.58337093,237.16,237.15,137.363]
[1737193538797,20.58337093,237.16,237.15,0.063]
[1737193541102,20.58337093,237.16,237.05,137.3]
[1737193541103,23.776884,237.15,237.05,137.3]
[1737193541299,20.58337093,237.06,237.05,137.3]
[1737193542497,20.58337093,237.06,236.97,137.3]
[1737193542703,20.58337093,237.0,236.97,137.3]
[1737193543306,20.58337093,236.98,236.97,137.3]
[1737193543700,20.58337093,236.98,236.91,137.363]
[1737193543901,20.58337093,236.92,236.91,137.363]
[1737193545232,20.58337093,236.94,236.91,137.363]
[1737193545731,20.58337093,236.92,236.91,137.363]
[1737193547310,20.58337093,236.92,236.91,0.063]
[1737193548322,44.36025493,236.92,236.91,0.063]
[1737193549311,20.58337093,236.92,236.91,0.063]
[1737193549825,20.58337093,236.94,236.91,137.363]
[1737193551405,20.58337093,236.92,236.91,137.363]
[1737193552115,20.58337093,236.94,236.91,137.363]
[1737193552424,20.58337093,236.94,236.93,157.3]
[1737193552626,20.58337093,236.96,236.93,157.3]
[1737193554423,20.58337093,237.01,236.93,177.88337093]
[1737193554922,1.7234,237.2,236.99,20.58337093]
[1737193555125,20.58337093,237.13,237.05,20.58337093]
[1737193555325,20.61337093,237.15,237.08,20.0]
[1737193555533,20.61337093,237.15,237.08,157.3]
[1737193555707,20.58337093,237.11,237.08,157.3]
[1737193557209,0.03,237.15,237.12,157.3]
[1737193557410,0.03,237.15,237.13,0.63236996]
[1737193557712,0.03,237.15,237.14,137.3]
[1737193557929,20.58337093,237.14,237.05,137.3]
[1737193558119,0.03,237.15,237.05,137.3]
[1737193558316,20.58337093,237.06,237.05,137.3]
[1737193558847,20.58337093,237.06,236.98,137.3]
[1737193559041,20.58337093,237.02,236.98,137.3]
[1737193559434,20.58337093,237.0,236.98,137.3]
[1737193559613,20.58337093,237.02,236.98,137.3]
[1737193559818,20.58337093,237.0,236.98,137.3]
[1737193561839,20.58337093,237.02,236.98,137.3]
[1737193562022,8.5507,237.11,237.01,157.3]
[1737193562023,20.58337093,237.09,237.01,157.3]
[1737193562224,0.03,237.15,237.1,157.3]
[1737193562425,20.58337093,237.14,237.1,157.3]
[1737193562720,20.58337093,237.12,237.1,157.3]
[1737193563423,20.61485264,237.11,237.1,137.3]
[1737193564447,20.61485264,237.11,237.1,122.65727471]
[1737193564944,20.61485264,237.11,237.1,122.72027471]
[1737193565328,20.61485264,237.11,237.1,0.063]
[1737193565646,44.39173664,237.11,237.1,0.063]
[1737193566143,27.994484,237.1,236.96,122.65727471]
[1737193566365,20.61485264,237.01,236.96,122.65727471]
[1737193566840,20.61485264,237.05,236.97,0.63283742]
[1737193567154,20.61485264,237.01,236.99,122.65727471]
[1737193567325,20.61485264,237.01,236.91,122.72027471]
[1737193567524,20.61485264,236.97,236.91,122.72027471]
[1737193567928,20.61485264,236.97,236.94,20.0]
[1737193568540,20.61485264,236.97,236.91,122.72027471]
[1737193568743,20.61485264,236.93,236.91,122.72027471]
[1737193571449,1.7927,237.02,236.94,142.65727471]
[1737193571648,20.61485264,237.05,236.98,20.0]
[1737193571838,20.61485264,237.03,236.98,142.65727471]
[1737193572027,20.61485264,236.99,236.98,142.65727471]
[1737193572537,20.61485264,237.03,236.98,142.65727471]
[1737193573048,20.61485264,237.01,236.98,142.65727471]
[1737193573727,20.61485264,237.03,236.98,142.65727471]
[1737193573949,20.61485264,237.01,236.98,142.65727471]
[1737193574645,20.61485264,236.99,236.98,142.65727471]
[1737193574842,20.61485264,236.99,236.98,122.65727471]
[1737193575530,20.61485264,237.01,236.98,122.65727471]
[1737193575843,20.61485264,236.99,236.94,142.65727471]
[1737193576046,20.61485264,236.97,236.94,142.65727471]
[1737193577353,20.61485264,236.99,236.94,142.65727471]
[1737193578062,20.61485264,236.97,236.94,142.65727471]
[1737193578361,20.61485264,236.97,236.94,122.65727471]
[1737193578846,20.61485264,236.99,236.97,20.0]
[1737193579159,20.61485264,237.02,236.97,142.65727471]
[1737193579463,20.61485264,237.06,236.97,142.65727471]
[1737193579634,20.61485264,237.07,236.98,0.63272461]
[1737193579830,20.61485264,237.01,236.98,122.65727471]
[1737193580053,20.61485264,236.99,236.98,122.65727471]
[1737193580540,20.61485264,236.99,236.94,20.0]
[1737193580761,20.61485264,236.96,236.94,142.65727471]
[1737193581331,20.61485264,236.96,236.94,122.65727471]
[1737193582647,20.61485264,237.0,236.97,142.65727471]
[1737193582850,20.61485264,236.98,236.91,122.72027471]
[1737193583045,20.61485264,236.93,236.91,122.72027471]
[1737193584044,20.61485264,236.95,236.94,20.0]
[1737193584251,20.61485264,236.95,236.94,142.65727471]
[1737193584451,20.61485264,237.01,236.94,142.65727471]
[1737193585341,20.61485264,237.05,236.98,142.65727471]
[1737193586761,20.61485264,237.03,236.98,142.65727471]
[1737193587454,20.61485264,237.01,236.98,142.65727471]
[1737193588056,20.61485264,237.03,236.98,142.65727471]
[1737193589554,20.61485264,236.99,236.98,142.65727471]
[1737193589748,20.61485264,236.99,236.98,122.65727471]
[1737193590167,20.61485264,236.99,236.91,122.72027471]
[1737193590341,20.61485264,236.94,236.93,20.0]
[1737193590748,20.61485264,236.94,236.93,142.65727471]
[1737193590944,20.61485264,236.94,236.93,122.65727471]
[1737193591858,20.61485264,236.94,236.91,122.72027471]
[1737193592060,20.61485264,236.92,236.91,122.72027471]
[1737193592262,20.61485264,236.94,236.91,122.72027471]
[1737193592570,20.61485264,236.92,236.91,122.72027471]
[1737193594258,20.61485264,236.92,236.91,0.063]
[1737193596970,20.61485264,236.94,236.91,122.72027471]
[1737193597176,20.61485264,236.97,236.91,122.72027471]
[1737193597477,20.61485264,236.95,236.91,122.72027471]
[1737193597767,20.61485264,236.93,236.91,122.72027471]
[1737193597944,23.776884,236.92,236.91,0.063]
[1737193598744,23.776884,236.92,236.86,0.063]
[1737193598948,44.39173664,236.87,236.86,0.063]
[1737193599772,47.26323664,236.87,236.86,0.063]
[1737193599948,20.61485264,236.75,236.74,122.72027471]
[1737193600266,20.61485264,236.75,236.74,0.063]
[1737193600451,20.61485264,236.81,236.74,122.72027471]
[1737193600655,20.61485264,236.83,236.77,20.0]
[1737193600858,20.61485264,236.81,236.77,142.65727471]
[1737193601184,20.61485264,236.79,236.77,142.65727471]
[1737193601756,20.61485264,236.79,236.77,122.65727471]
[1737193602175,20.61485264,236.79,236.74,122.72027471]
[1737193602378,20.61485264,236.75,236.74,122.72027471]
[1737193602671,20.61485264,236.77,236.76,20.0]
[1737193602880,20.61485264,236.79,236.78,20.0]
[1737193603175,20.61485264,236.83,236.8,122.65727471]
[1737193603565,20.61485264,236.81,236.8,122.65727471]
[1737193604369,20.61485264,236.83,236.8,122.65727471]
[1737193604683,20.61485264,236.81,236.8,122.65727471]
[1737193605251,20.61485264,236.81,236.74,122.72027471]
[1737193605454,20.61485264,236.77,236.74,122.72027471]
[1737193605774,20.61485264,236.75,236.74,0.063]
[1737193605956,20.61485264,236.77,236.74,122.72027471]
[1737193606359,20.61485264,236.75,236.74,0.063]
[1737193607057,44.39173664,236.75,236.74,0.063]
[1737193607873,47.38353664,236.75,236.74,0.063]
[1737193608062,28.000884,236.74,236.7,0.063]
[1737193608259,20.61485264,236.71,236.7,0.063]
[1737193608465,44.39173664,236.71,236.7,0.063]
[1737193609960,20.61485264,236.71,236.7,0.063]
[1737193610166,20.61485264,236.73,236.7,0.063]
[1737193610478,20.61485264,236.75,236.7,122.72027471]
[1737193611172,2.9918,236.82,236.73,122.65727471]
[1737193611360,20.61485264,236.74,236.73,122.65727471]
[1737193612667,20.61485264,236.74,236.73,122.72027471]
[1737193614383,15.334,236.99,236.76,142.65727471]
[1737193614690,20.61485264,236.81,236.76,142.65727471]
[1737193615776,20.61485264,236.83,236.76,142.65727471]
[1737193615988,20.61485264,236.81,236.73,122.72027471]
[1737193616161,20.61485264,236.74,236.73,122.72027471]